fUST/lending_fUST_20240906
["ID","MTS","AMOUNT","RATE_DAILY","PERIOD"]
[337325135,1725603053434,-500.0,0.00020617,2]
[337325136,1725603053444,-500.0,0.00020617,2]
[337325137,1725603053453,-500.0,0.00020617,2]
[337325138,1725603053462,-500.0,0.00020617,2]
[337325139,1725603053472,-500.0,0.00020617,2]
[337325140,1725603053481,-740.53,0.00020617,2]
[337325141,1725603053492,-500.0,0.00020617,2]
[337325142,1725603053501,-500.0,0.00020617,2]
[337325143,1725603053511,-1539.53,0.00020617,2]
[337325144,1725603053521,-500.0,0.00020617,2]
[337325145,1725603053530,-754.9,0.00020617,2]
[337325146,1725603053539,-500.0,0.00020617,2]
[337325147,1725603053548,-733.87,0.00020617,2]
[337325148,1725603053558,-586.56,0.00020617,2]
[337325149,1725603053568,-500.0,0.00020617,2]
[337325150,1725603053577,-500.0,0.00020617,2]
[337325151,1725603053586,-500.0,0.00020617,2]
[337325152,1725603053595,-1561.89,0.00020617,2]
[337325153,1725603053604,-500.0,0.00020617,2]
[337325154,1725603053613,-500.0,0.00020617,2]
[337325155,1725603053623,-500.0,0.00020617,2]
[337325156,1725603053632,-526.42,0.00020617,2]
[337325157,1725603053642,-500.0,0.00020617,2]
[337325158,1725603053652,-1855.18,0.00020617,2]
[337325159,1725603053662,-500.0,0.00020617,2]
[337325160,1725603053671,-500.0,0.00020617,2]
[337325161,1725603053680,-158.31835841,0.00020617,2]
[337325162,1725603053689,-618.21,0.00020617,2]
[337325163,1725603053699,-500.0,0.00020617,2]
[337325164,1725603053708,-1058.34,0.00020617,2]
[337325165,1725603053719,-500.0,0.00020617,2]
[337325166,1725603053729,-500.0,0.00020617,2]
[337325167,1725603053739,-500.0,0.00020617,2]
[337325168,1725603053748,-500.0,0.00020617,2]
[337325169,1725603053757,-500.0,0.00020617,2]
[337325170,1725603053766,-500.0,0.00020617,2]
[337325171,1725603053775,-483.17318248,0.00020617,2]
[337325172,1725603053785,-568.98,0.00020617,2]
[337325173,1725603053794,-514.5131781,0.00020617,2]
[337325174,1725603053803,-500.0,0.00020617,2]
[337325175,1725603053813,-513.39,0.00020617,2]
[337325176,1725603053822,-1225.33,0.00020617,2]
[337325177,1725603053831,-506.47,0.00020617,2]
[337325178,1725603053840,-500.0,0.00020617,2]
[337325179,1725603053850,-500.0,0.00020617,2]
[337325180,1725603053859,-603.34,0.00020617,2]
[337325181,1725603053869,-1308.07,0.00020617,2]
[337325182,1725603053878,-753.73,0.00020617,2]
[337325183,1725603053887,-903.75,0.00020617,2]
[337325184,1725603053896,-500.0,0.00020617,2]
[337325185,1725603053906,-500.0,0.00020617,2]
[337325186,1725603053915,-500.0,0.00020617,2]
[337325187,1725603053925,-500.0,0.00020617,2]
[337325188,1725603053935,-2360.95,0.00020617,2]
[337325189,1725603053944,-500.0,0.00020617,2]
[337325190,1725603053953,-151.0,0.00020617,2]
[337325191,1725603053962,-249.499381,0.00020617,2]
[337325192,1725603053971,-220.505236,0.00020617,2]
[337325193,1725603053981,-249.499381,0.00020617,2]
[337325194,1725603053990,-220.505236,0.00020617,2]
[337325195,1725603053999,-500.0,0.00020618,2]
[337325196,1725603054008,-500.0,0.00020618,2]
[337325197,1725603054018,-500.0,0.00020618,2]
[337325198,1725603054029,-500.0,0.00020618,2]
[337325199,1725603054041,-500.0,0.00020618,2]
[337325200,1725603054052,-507.56429484,0.00020618,2]
[337325201,1725603054062,-596.27,0.00020618,2]
[337325202,1725603054072,-500.0,0.00020618,2]
[337325203,1725603054083,-500.0,0.00020618,2]
[337325204,1725603054093,-500.0,0.00020618,2]
[337325205,1725603054102,-500.0,0.00020618,2]
[337325206,1725603054112,-500.0,0.00020618,2]
[337325207,1725603054122,-500.0,0.00020618,2]
[337325208,1725603054132,-500.0,0.00020618,2]
[337325209,1725603054142,-162.19307495,0.00020618,2]
[337325210,1725603054152,-500.0,0.00020618,2]
[337325211,1725603054161,-500.0,0.00020618,2]
[337325212,1725603054172,-500.0,0.00020618,2]
[337325213,1725603054181,-748.74,0.00020618,2]
[337325214,1725603054191,-500.0,0.00020618,2]
[337325215,1725603054201,-500.0,0.00020618,2]
[337325216,1725603054210,-1345.06,0.00020618,2]
[337325218,1725603054220,-660.05,0.00020618,2]
[337325219,1725603054230,-500.0,0.00020618,2]
[337325220,1725603054240,-500.0,0.00020618,2]
[337325221,1725603054251,-504.1221648,0.00020618,2]
[337325222,1725603054262,-500.0,0.00020618,2]
[337325223,1725603054271,-723.36,0.00020618,2]
[337325224,1725603054280,-500.0,0.00020618,2]
[337325225,1725603054292,-500.0,0.00020618,2]
[337325226,1725603054303,-500.0,0.00020618,2]
[337325227,1725603054314,-500.0,0.00020618,2]
[337325228,1725603054324,-500.0,0.00020618,2]
[337325229,1725603054335,-652.31,0.00020618,2]
[337325230,1725603054346,-500.0,0.00020618,2]
[337325231,1725603054356,-500.0,0.00020618,2]
[337325232,1725603054366,-500.0,0.00020618,2]
[337325233,1725603054377,-500.0,0.00020618,2]
[337325234,1725603054388,-500.0,0.00020618,2]
[337325235,1725603054403,-500.0,0.00020618,2]
[337325236,1725603054414,-500.0,0.00020618,2]
[337325237,1725603054424,-500.0,0.00020618,2]
[337325238,1725603054435,-500.0,0.00020618,2]
[337325239,1725603054445,-500.0,0.00020618,2]
[337325240,1725603054455,-592.73,0.00020618,2]
[337325241,1725603054464,-500.0,0.00020618,2]
[337325242,1725603054475,-500.0,0.00020618,2]
[337325243,1725603054485,-500.0,0.00020618,2]
[337325244,1725603054495,-1822.88,0.00020618,2]
[337325245,1725603054505,-500.0,0.00020618,2]
[337325246,1725603054515,-500.0,0.00020618,2]
[337325247,1725603054525,-513.28259797,0.00020618,2]
[337325248,1725603054535,-500.0,0.00020618,2]
[337325249,1725603054545,-500.0,0.00020618,2]
[337325250,1725603054554,-500.0,0.00020618,2]
[337325251,1725603054564,-500.0,0.00020618,2]
[337325252,1725603054575,-569.46,0.00020618,2]
[337325253,1725603054584,-500.0,0.00020618,2]
[337325254,1725603054594,-500.0,0.00020618,2]
[337325255,1725603054604,-514.51719659,0.00020618,2]
[337325256,1725603054615,-500.0,0.00020618,2]
[337325257,1725603054626,-307.10819742,0.00020618,2]
[337325258,1725603054636,-500.0,0.00020618,2]
[337325259,1725603054646,-395.8230372,0.00020618,2]
[337325260,1725603054656,-500.0,0.00020618,2]
[337325261,1725603054667,-506.85091939,0.00020618,2]
[337325262,1725603054678,-500.0,0.00020618,2]
[337325263,1725603054688,-781.87,0.00020618,2]
[337325264,1725603054698,-500.0,0.00020618,2]
[337325265,1725603054707,-500.0,0.00020618,2]
[337325266,1725603054716,-500.0,0.00020618,2]
[337325267,1725603054726,-500.0,0.00020618,2]
[337325268,1725603054736,-500.0,0.00020618,2]
[337325269,1725603054746,-504.12572542,0.00020618,2]
[337325270,1725603054755,-500.0,0.00020618,2]
[337325271,1725603054764,-500.0,0.00020618,2]
[337325272,1725603054774,-500.0,0.00020618,2]
[337325273,1725603054783,-907.39730399,0.00020621,2]
[337325274,1725603054792,-179.02508858,0.00020621,2]
[337325275,1725603054801,-500.0,0.00020638,2]
[337325276,1725603054811,-500.0,0.00020638,2]
[337325277,1725603054820,-500.0,0.00020638,2]
[337325278,1725603054830,-500.0,0.00020638,2]
[337325279,1725603054839,-486.41050529,0.00020638,2]
[337325280,1725603054849,-156.0,0.0002077,4]
[337325281,1725603054858,-1480.68,0.00020851,2]
[337325282,1725603054868,-5593.57,0.00020851,2]
[337325283,1725603054877,-1166.64,0.00020851,2]
[337325284,1725603054887,-500.0,0.00020851,2]
[337325285,1725603054896,-637.89,0.00020851,2]
[337325286,1725603054905,-1010.8,0.00020851,2]
[337325287,1725603054914,-1971.42,0.00020851,2]
[337325288,1725603054924,-556.01,0.0002086,2]
[337325289,1725603054934,-7934.81,0.0002086,2]
[337325290,1725603054944,-592.95,0.0002086,2]
[337325291,1725603054955,-500.0,0.0002086,2]
[337325292,1725603054964,-1374.45,0.0002086,2]
[337325293,1725603054974,-777.41,0.0002086,2]
[337325294,1725603054984,-1670.59,0.0002086,2]
[337325295,1725603054993,-878.94,0.00020861,2]
[337325296,1725603055003,-500.0,0.00020861,2]
[337325297,1725603055013,-881.97,0.00020861,2]
[337325298,1725603055022,-1540.13,0.00020861,2]
[337325299,1725603055032,-938.2,0.00020861,2]
[337325300,1725603055041,-1349.8,0.00020861,2]
[337325301,1725603055050,-500.0,0.00020861,2]
[337325302,1725603055065,-24775.49,0.00020861,2]
[337325303,1725603055074,-905.47,0.00020861,2]
[337325304,1725603055083,-1153.75,0.00020861,2]
[337325305,1725603055093,-1020.9,0.00020861,2]
[337325306,1725603055102,-1242.45,0.00020861,2]
[337325307,1725603055112,-500.0,0.00020861,2]
[337325308,1725603055122,-677.65,0.00020861,2]
[337325309,1725603055132,-2039.31,0.00020861,2]
[337325310,1725603055143,-500.0,0.00020861,2]
[337325311,1725603055153,-2650.81,0.00020861,2]
[337325312,1725603055162,-500.0,0.00020861,2]
[337325313,1725603055171,-500.0,0.00020861,2]
[337325314,1725603055181,-500.0,0.00020861,2]
[337325315,1725603055194,-500.0,0.00020861,2]
[337325316,1725603055203,-500.0,0.00020861,2]
[337325317,1725603055213,-500.0,0.00020861,2]
[337325318,1725603055222,-1129.76,0.00020861,2]
[337325319,1725603055232,-1211.83,0.00020861,2]
[337325320,1725603055242,-1277.93,0.00020861,2]
[337325321,1725603055252,-699.45,0.00020861,2]
[337325322,1725603055262,-525.94481782,0.00020861,2]
[337325323,1725603055271,-500.0,0.00020861,2]
[337325324,1725603055281,-500.0,0.00020861,2]
[337325325,1725603055290,-500.0,0.00020861,2]
[337325326,1725603055299,-500.0,0.00020861,2]
[337325327,1725603055309,-511.90813034,0.00020871,2]
[337325328,1725603055318,-500.0,0.00020871,2]
[337325329,1725603055327,-500.0,0.00020871,2]
[337325330,1725603055337,-500.0,0.00020871,2]
[337325331,1725603055347,-500.0,0.00020871,2]
[337325332,1725603055356,-500.0,0.00020871,2]
[337325333,1725603055365,-500.0,0.00020871,2]
[337325334,1725603055375,-500.0,0.00020871,2]
[337325335,1725603055385,-500.0,0.00020871,2]
[337325336,1725603055396,-500.0,0.00020871,2]
[337325337,1725603055406,-507.55967135,0.00020871,2]
[337325338,1725603055415,-500.0,0.00020871,2]
[337325339,1725603055425,-807.11,0.00020871,2]
[337325340,1725603055435,-500.0,0.00020871,2]
[337325341,1725603055444,-542.2,0.00020871,2]
[337325342,1725603055454,-500.0,0.00020871,2]
[337325343,1725603055463,-626.22,0.00020871,2]
[337325344,1725603055475,-500.0,0.00020871,2]
[337325345,1725603055485,-500.0,0.00020871,2]
[337325346,1725603055496,-500.0,0.00020871,2]
[337325347,1725603055506,-500.0,0.00020871,2]
[337325348,1725603055515,-500.0,0.00020871,2]
[337325349,1725603055525,-200.0,0.00020871,2]
[337325350,1725603055534,-500.0,0.00020871,2]
[337325351,1725603055544,-500.0,0.00020871,2]
[337325352,1725603055663,-634.05,0.00020871,2]
[337325353,1725603055673,-500.0,0.00020871,2]
[337325354,1725603055683,-500.0,0.00020871,2]
[337325355,1725603055692,-500.0,0.00020871,2]
[337325356,1725603055701,-622.5,0.00020871,2]
[337325357,1725603055711,-500.0,0.00020871,2]
[337325358,1725603055720,-500.0,0.00020871,2]
[337325359,1725603055730,-500.0,0.00020871,2]
[337325360,1725603055739,-903.49,0.00020871,2]
[337325361,1725603055748,-500.0,0.00020871,2]
[337325362,1725603055758,-500.0,0.00020871,2]
[337325363,1725603055768,-500.0,0.00020871,2]
[337325364,1725603055777,-500.0,0.00020871,2]
[337325365,1725603055787,-500.0,0.00020871,2]
[337325366,1725603055796,-517.81873985,0.00020871,2]
[337325367,1725603055805,-500.0,0.00020871,2]
[337325368,1725603055814,-500.0,0.00020871,2]
[337325369,1725603055823,-599.38927574,0.00020871,2]
[337325370,1725603055832,-500.0,0.00020871,2]
[337325371,1725603055842,-500.0,0.00020871,2]
[337325372,1725603055851,-500.0,0.00020871,2]
[337325373,1725603055860,-500.0,0.00020871,2]
[337325374,1725603055870,-582.54,0.00020871,2]
[337325375,1725603055879,-500.0,0.00020871,2]
[337325376,1725603055888,-500.0,0.00020871,2]
[337325377,1725603055897,-500.0,0.00020871,2]
[337325378,1725603055906,-500.0,0.00020871,2]
[337325379,1725603055916,-500.0,0.00020871,2]
[337325380,1725603055926,-752.04,0.00020871,2]
[337325381,1725603055935,-500.0,0.00020871,2]
[337325382,1725603055944,-500.0,0.00020871,2]
[337325383,1725603055954,-363.44721898,0.00020871,2]
[337325384,1725603055964,-151.0,0.00020871,2]
[337325385,1725603055973,-498.02868589,0.00020871,2]
[337325386,1725603055982,-500.0,0.00020871,2]
[337325387,1725603055991,-500.0,0.00020871,2]
[337325388,1725603056001,-500.0,0.00020871,2]
[337325389,1725603056010,-500.0,0.00020871,2]
[337325390,1725603056019,-500.0,0.00020871,2]
[337325391,1725603056029,-500.0,0.00020871,2]
[337325392,1725603056038,-151.0,0.00020871,2]
[337325393,1725603056048,-151.0,0.00020871,2]
[337325394,1725603056057,-839.29,0.00020871,2]
[337325395,1725603056066,-500.0,0.00020871,2]
[337325396,1725603056077,-511.13738869,0.00020871,2]
[337325397,1725603056087,-500.0,0.00020871,2]
[337325398,1725603056098,-500.0,0.00020871,2]
[337325399,1725603056108,-500.0,0.00020871,2]
[337325400,1725603056119,-500.0,0.00020871,2]
[337325401,1725603056130,-500.0,0.00020871,2]
[337325402,1725603056140,-500.0,0.00020871,2]
[337325403,1725603056150,-500.0,0.00020871,2]
[337325404,1725603056159,-500.0,0.00020871,2]
[337325405,1725603056169,-1430.21,0.00020871,2]
[337325406,1725603056178,-500.0,0.00020871,2]
[337325407,1725603056187,-500.0,0.00020871,2]
[337325408,1725603056197,-407.01833118,0.00020871,2]
[337325409,1725603056206,-1109.83,0.00020871,2]
[337325410,1725603056215,-500.0,0.00020871,2]
[337325411,1725603056224,-500.0,0.00020871,2]
[337325412,1725603056234,-196.48896559,0.00020871,2]
[337325413,1725603056243,-500.0,0.00020871,2]
[337325414,1725603056253,-736.06,0.00020871,2]
[337325415,1725603056263,-500.0,0.00020871,2]
[337325416,1725603056275,-537.01,0.00020871,2]
[337325417,1725603056284,-500.0,0.00020871,2]
[337325418,1725603056293,-500.0,0.00020871,2]
[337325419,1725603056303,-500.0,0.00020871,2]
[337325420,1725603056313,-1628.82,0.00020871,2]
[337325421,1725603056322,-964.66,0.00020871,2]
[337325422,1725603056331,-500.0,0.00020871,2]
[337325423,1725603056340,-500.0,0.00020871,2]
[337325424,1725603056349,-500.0,0.00020871,2]
[337325425,1725603056358,-524.15089459,0.00020871,2]
[337325426,1725603056368,-500.0,0.00020871,2]
[337325427,1725603056377,-500.0,0.00020871,2]
[337325428,1725603056387,-500.0,0.00020871,2]
[337325429,1725603056401,-615.82652467,0.00020871,2]
[337325430,1725603056410,-500.0,0.00020871,2]
[337325431,1725603056420,-444.22188546,0.00020871,2]
[337325432,1725603056430,-500.0,0.00020871,2]
[337325433,1725603056440,-1047.98,0.00020871,2]
[337325434,1725603056451,-500.0,0.00020871,2]
[337325435,1725603056461,-500.0,0.00020871,2]
[337325436,1725603056470,-500.0,0.00020871,2]
[337325437,1725603056480,-500.0,0.00020871,2]
[337325438,1725603056490,-500.0,0.00020871,2]
[337325439,1725603056500,-7546.56,0.00020871,2]
[337325440,1725603056510,-500.0,0.00020871,2]
[337325441,1725603056519,-500.0,0.00020871,2]
[337325442,1725603056529,-1350.37,0.00020871,2]
[337325443,1725603056539,-1291.8,0.00020871,2]
[337325444,1725603056548,-500.0,0.00020871,2]
[337325445,1725603056558,-1424.74,0.00020871,2]
[337325446,1725603056567,-500.0,0.00020871,2]
[337325447,1725603056577,-1341.57,0.00020871,2]
[337325448,1725603056587,-1854.7,0.00020871,2]
[337325449,1725603056596,-500.0,0.00020871,2]
[337325450,1725603056606,-500.0,0.00020871,2]
[337325451,1725603056615,-500.0,0.00020871,2]
[337325452,1725603056625,-500.0,0.00020871,2]
[337325453,1725603056634,-500.0,0.00020871,2]
[337325454,1725603056643,-500.0,0.00020871,2]
[337325455,1725603056653,-500.0,0.00020871,2]
[337325456,1725603056663,-500.0,0.00020871,2]
[337325457,1725603056672,-500.0,0.00020871,2]
[337325458,1725603056681,-872.4,0.00020871,2]
[337325459,1725603056691,-500.0,0.00020871,2]
[337325460,1725603056701,-573.8,0.00020871,2]
[337325461,1725603056713,-500.0,0.00020871,2]
[337325462,1725603056723,-500.0,0.00020871,2]
[337325463,1725603056733,-500.0,0.00020871,2]
[337325464,1725603056743,-500.0,0.00020871,2]
[337325465,1725603056752,-547.5,0.00020871,2]
[337325466,1725603056761,-555.33,0.00020871,2]
[337325467,1725603056771,-500.0,0.00020871,2]
[337325468,1725603056780,-575.1889327,0.00020871,2]
[337325469,1725603056789,-606.52,0.00020871,2]
[337325470,1725603056799,-500.0,0.00020871,2]
[337325471,1725603056808,-500.0,0.00020871,2]
[337325472,1725603056818,-500.0,0.00020871,2]
[337325473,1725603056827,-500.0,0.00020871,2]
[337325474,1725603056836,-535.48,0.00020871,2]
[337325475,1725603056846,-500.0,0.00020871,2]
[337325476,1725603056856,-544.37234125,0.00020871,2]
[337325477,1725603056866,-500.0,0.00020871,2]
[337325478,1725603056875,-500.0,0.00020871,2]
[337325479,1725603056885,-671.91,0.00020871,2]
[337325480,1725603056895,-500.0,0.00020871,2]
[337325481,1725603056904,-500.0,0.00020871,2]
[337325482,1725603056913,-500.0,0.00020871,2]
[337325483,1725603056923,-500.0,0.00020871,2]
[337325484,1725603056932,-500.0,0.00020871,2]
[337325485,1725603056942,-500.0,0.00020871,2]
[337325486,1725603056951,-500.0,0.00020871,2]
[337325487,1725603056961,-654.5,0.00020871,2]
[337325488,1725603056970,-500.0,0.00020871,2]
[337325489,1725603056980,-510.17814261,0.00020871,2]
[337325490,1725603056989,-500.0,0.00020871,2]
[337325491,1725603056999,-500.0,0.00020871,2]
[337325492,1725603057008,-500.0,0.00020871,2]
[337325493,1725603057017,-500.0,0.00020871,2]
[337325494,1725603057027,-2392.4,0.00020871,2]
[337325495,1725603057036,-500.0,0.00020871,2]
[337325496,1725603057046,-500.0,0.00020871,2]
[337325497,1725603057056,-500.0,0.00020871,2]
[337325498,1725603057065,-116073.84,0.00020871,2]
[337325499,1725603057075,-500.0,0.00020871,2]
[337325500,1725603057084,-500.0,0.00020871,2]
[337325501,1725603057096,-500.0,0.00020871,2]
[337325502,1725603057106,-500.0,0.00020871,2]
[337325503,1725603057115,-500.0,0.00020871,2]
[337325504,1725603057125,-1403.48,0.00020871,2]
[337325505,1725603057134,-500.0,0.00020871,2]
[337325506,1725603057144,-500.0,0.00020871,2]
[337325507,1725603057153,-772.05,0.00020871,2]
[337325508,1725603057163,-348.34170285,0.00020871,2]
[337325509,1725603057173,-500.0,0.00020871,2]
[337325510,1725603057183,-500.0,0.00020871,2]
[337325511,1725603057192,-500.0,0.00020871,2]
[337325512,1725603057201,-500.0,0.00020871,2]
[337325513,1725603057211,-500.0,0.00020871,2]
[337325514,1725603057220,-500.0,0.00020871,2]
[337325515,1725603057230,-500.0,0.00020871,2]
[337325516,1725603057239,-500.0,0.00020871,2]
[337325517,1725603057248,-1367.49,0.00020871,2]
[337325518,1725603057258,-500.0,0.00020871,2]
[337325519,1725603057267,-500.0,0.00020871,2]
[337325520,1725603057276,-511.04716829,0.00020871,2]
[337325521,1725603057286,-4460.29594674,0.0002088,2]
[337325522,1725603057295,-157.363378,0.00020881,2]
[337325523,1725603057304,-342.465442,0.00020881,2]
[337325524,1725603057314,-342.465442,0.00020881,2]
[337325525,1725603057323,-222.959353,0.00020881,2]
[337325526,1725603057333,-222.959353,0.00020881,2]
[337325527,1725603057344,-151.0,0.00020881,2]
[337325528,1725603057355,-151.0,0.00020881,2]
[337325529,1725603057365,-233.166546,0.00020881,2]
[337325530,1725603057374,-151.0,0.00020881,2]
[337325531,1725603057384,-151.0,0.00020881,2]
[337325532,1725603057395,-172.116408,0.00020881,2]
[337325533,1725603057405,-172.116408,0.00020881,2]
[337325534,1725603057415,-3018.044888,0.00020881,2]
[337325535,1725603057425,-3018.044888,0.00020881,2]
[337325536,1725603057434,-187.877231,0.00020881,2]
[337325537,1725603057445,-187.877231,0.00020881,2]
[337325538,1725603057455,-151.0,0.0002089,2]
[337325539,1725603057466,-156.844349,0.0002089,2]
[337325540,1725603057476,-151.0,0.0002089,2]
[337325541,1725603057486,-151.0,0.0002089,2]
[337325542,1725603057496,-249.499381,0.0002089,2]
[337325543,1725603057505,-220.505236,0.0002089,2]
[337325544,1725603057515,-249.499381,0.0002089,2]
[337325545,1725603057524,-151.0,0.0002089,2]
[337325546,1725603057534,-220.505236,0.0002089,2]
[337325547,1725603057543,-151.0,0.0002089,2]
[337325548,1725603057552,-151.0,0.0002089,2]
[337325549,1725603057563,-151.0,0.0002089,2]
[337325550,1725603057573,-151.0,0.0002089,2]
[337325551,1725603057584,-151.0,0.0002089,2]
[337325552,1725603057593,-151.0,0.0002089,2]
[337325553,1725603057602,-151.0,0.0002089,2]
[337325554,1725603057612,-151.0,0.0002089,2]
[337325555,1725603057621,-190.155027,0.0002089,2]
[337325556,1725603057631,-256.632414,0.0002089,2]
[337325557,1725603057640,-256.632414,0.0002089,2]
[337325558,1725603057649,-190.155027,0.0002089,2]
[337325559,1725603057659,-151.0,0.0002089,2]
[337325560,1725603057668,-151.0,0.00020891,2]
[337325561,1725603057678,-151.0,0.00020891,2]
[337325562,1725603057688,-151.920499,0.00020891,2]
[337325563,1725603057697,-151.649018,0.00020891,2]
[337325564,1725603057708,-151.0,0.00020891,2]
[337325565,1725603057719,-151.0,0.00020891,2]
[337325566,1725603057730,-500.0,0.00020891,2]
[337325567,1725603057740,-500.0,0.00020891,2]
[337325568,1725603057751,-247.783809,0.00020891,2]
[337325569,1725603057761,-517.95335389,0.00020891,2]
[337325570,1725603057770,-500.0,0.00020891,2]
[337325571,1725603057780,-500.0,0.00020891,2]
[337325572,1725603057790,-740.53,0.00020891,2]
[337325573,1725603057800,-500.0,0.00020891,2]
[337325574,1725603057809,-500.0,0.00020891,2]
[337325575,1725603057819,-1539.53,0.00020891,2]
[337325576,1725603057828,-500.0,0.00020891,2]
[337325577,1725603057947,-754.9,0.00020891,2]
[337325578,1725603057957,-500.0,0.00020891,2]
[337325579,1725603057966,-733.87,0.00020891,2]
[337325580,1725603057976,-586.56,0.00020891,2]
[337325581,1725603057985,-151.0,0.00020891,2]
[337325582,1725603057994,-568.00829423,0.00020891,2]
[337325583,1725603058005,-151.0,0.00020891,2]
[337325584,1725603058015,-500.0,0.00020891,2]
[337325585,1725603058025,-500.0,0.00020891,2]
[337325586,1725603058034,-151.884484,0.00020891,2]
[337325587,1725603058044,-1561.89,0.00020891,2]
[337325588,1725603058055,-151.884484,0.00020891,2]
[337325589,1725603058064,-151.0,0.00020891,2]
[337325590,1725603058074,-151.0,0.00020891,2]
[337325591,1725603058083,-500.0,0.00020891,2]
[337325592,1725603058093,-151.0,0.00020891,2]
[337325593,1725603058103,-500.0,0.00020891,2]
[337325594,1725603058112,-500.0,0.00020891,2]
[337325595,1725603058122,-151.0,0.00020891,2]
[337325596,1725603058132,-526.42,0.00020891,2]
[337325597,1725603058142,-500.0,0.00020891,2]
[337325598,1725603058152,-151.0,0.00020891,2]
[337325599,1725603058162,-151.0,0.00020891,2]
[337325600,1725603058172,-154.273044,0.00020891,2]
[337325601,1725603058182,-1855.18,0.00020891,2]
[337325602,1725603058191,-500.0,0.00020891,2]
[337325603,1725603058200,-500.0,0.00020891,2]
[337325604,1725603058210,-618.21,0.00020891,2]
[337325605,1725603058219,-500.0,0.00020891,2]
[337325606,1725603058229,-1058.34,0.00020891,2]
[337325607,1725603058238,-500.0,0.00020891,2]
[337325608,1725603058248,-500.0,0.00020891,2]
[337325609,1725603058258,-500.0,0.00020891,2]
[337325610,1725603058268,-500.0,0.00020891,2]
[337325611,1725603058277,-500.0,0.00020891,2]
[337325612,1725603058286,-500.0,0.00020891,2]
[337325613,1725603058295,-568.98,0.00020891,2]
[337325614,1725603058305,-500.0,0.00020891,2]
[337325615,1725603058314,-513.39,0.00020891,2]
[337325616,1725603058323,-1225.33,0.00020891,2]
[337325617,1725603058333,-506.47,0.00020891,2]
[337325618,1725603058342,-500.0,0.00020891,2]
[337325619,1725603058352,-500.0,0.00020891,2]
[337325620,1725603058363,-603.34,0.00020891,2]
[337325621,1725603058371,-1308.07,0.00020891,2]
[337325622,1725603058381,-753.73,0.00020891,2]
[337325623,1725603058393,-903.75,0.00020891,2]
[337325624,1725603058402,-500.0,0.00020891,2]
[337325625,1725603058411,-500.0,0.00020891,2]
[337325626,1725603058420,-500.0,0.00020891,2]
[337325627,1725603058430,-500.0,0.00020891,2]
[337325628,1725603058441,-2360.95,0.00020891,2]
[337325629,1725603058451,-500.0,0.00020891,2]
[337325630,1725603058461,-380.62019818,0.00020892,2]
[337325631,1725603058473,-500.0,0.00020892,2]
[337325632,1725603058483,-151.0,0.00020892,2]
[337325633,1725603058492,-151.0,0.00020892,2]
[337325634,1725603058501,-500.0,0.00020892,2]
[337325635,1725603058511,-207.79224015,0.00020892,2]